[Event "WTCC-50 2018"]
[Site "Radebeul"]
[Date "2018.07.07"]
[Round "1"]
[White "Fraser Mitchell, Jeremy N"]
[Black "Shabalov, Alexander"]
[Result "0-1"]
[ECO "A58"]
[WhiteElo "2060"]
[BlackElo "2570"]
[Annotator "ChessBase"]
[PlyCount "80"]
[EventDate "2018.07.07"]
[EventType "team-tourn"]
[EventCountry "GER"]
[SourceTitle "playchess.com"]
[Source "ChessBase"]
[SourceQuality "1"]
[TimeControl "40/5400+30:1800+30"]

1. d4 {[%emt 0:00:00]} Nf6 {[%emt 0:00:00]} 2. c4 {[%emt 0:00:00]} c5 {[%emt 0:01:06]} 3. d5 {[%emt 0:00:00]} b5 {[%emt 0:00:06]} 4. cxb5 {[%emt 0:00:51]} a6 {[%emt 0:00:06]} 5. bxa6 {[%emt 0:00:42]} g6 {[%emt 0:00:08]} 6. g3 {[%emt 0:00:26]} Bg7 {[%emt 0:00:36]} 7. Bg2 {[%emt 0:00:07]} d6 {[%emt 0:00:07]} 8. Nc3 {[%emt 0:00:17]} Bxa6 {[%emt 0:01:38]} 9. Nh3 {[%emt 0:00:30]} O-O {[%emt 0:02:30]} 10. O-O {[%emt 0:00:13]} Nbd7 {[%emt 0:00:09]} 11. Re1 {[%emt 0:01:31]} Qb6 {[%emt 0:01:26]} 12. Qc2 {[%emt 0:02:27]} Rfb8 {[%emt 0:01:05]} 13. Ng5 {[%emt 0:04:28]} Bc4 {[%emt 0:03:40]} 14. a4 {[%emt 0:28:17]} Qb4 {[%emt 0:06:47]} 15. Qd2 {[%emt 0:17:32]} Bb3 {[%emt 0:04:33]} 16. e4 {[%emt 0:10:16]} Nb6 {[%emt 0:07:11]} 17. f4 {[%emt 0:05:54]} Qd4+ {[%emt 0:07:59]} 18. Qxd4 {[%emt 0:03:08]} cxd4 {[%emt 0:00:06]} 19. Nb5 {[%emt 0:00:16]} d3 {[%emt 0:02:41]} 20. a5 {[%emt 0:07:01]} Nc4 {[%emt 0:01:31]} 21. e5 {[%emt 0:05:57]} Rxb5 {[%emt 0:01:27]} 22. exf6 {[%emt 0:00:07]} Bxf6 {[%emt 0:00:30]} 23. Ne4 {[%emt 0:00:31]} Bd4+ {[%emt 0:00:59]} 24. Kh1 {[%emt 0:00:34]} Raxa5 {[%emt 0:03:42]} 25. Rxa5 {[%emt 0:00:37]} Nxa5 {[%emt 0:00:08]} 26. Nd2 {[%emt 0:00:30]} Rc5 {[%emt 0:04:00]} 27. h3 {[%emt 0:02:17]} f5 {[%emt 0:04:18]} 28. g4 {[%emt 0:01:52]} Kf8 {[%emt 0:01:34]} 29. Kh2 {[%emt 0:01:28]} Rc2 {[%emt 0:02:06]} 30. Rd1 {[%emt 0:04:37]} Ba2 {[%emt 0:03:28]} 31. Kg3 {[%emt 0:01:00]} Bxb2 {[%emt 0:01:44]} 32. Bxb2 {[%emt 0:00:26]} Rxb2 {[%emt 0:00:06]} 33. Bf1 {[%emt 0:00:29]} Nc4 {[%emt 0:00:15]} 34. Nxc4 {[%emt 0:01:50]} Bxc4 {[%emt 0:00:07]} 35. gxf5 {[%emt 0:00:17]} gxf5 {[%emt 0:00:06]} 36. Kh4 {[%emt 0:00:15]} Rf2 {[%emt 0:02:02]} 37. Kg3 {[%emt 0:00:59]} Rb2 {[%emt 0:02:06]} 38. Kh4 {[%emt 0:00:05]} Rb5 {[%emt 0:00:38]} 39. Bxd3 {[%emt 0:00:59]} Rxd5 {[%emt 0:00:09]} 40. Bc2 {[%emt 0:00:08]} Rxd1 {[%emt 0:00:08]} 0-1

[Event "WTCC-50 2018"]
[Site "Radebeul"]
[Date "2018.07.07"]
[Round "1"]
[White "Keller, Harald"]
[Black "Plaskett, H James"]
[Result "0-1"]
[ECO "B25"]
[WhiteElo "2043"]
[BlackElo "2455"]
[Annotator "ChessBase"]
[PlyCount "58"]
[EventDate "2018.07.07"]
[EventType "team-tourn"]
[EventCountry "GER"]
[SourceTitle "playchess.com"]
[Source "ChessBase"]
[SourceQuality "1"]
[TimeControl "40/5400+30:1800+30"]

1. e4 {[%emt 0:00:00]} c5 {[%emt 0:04:53]} 2. Nc3 {[%emt 0:00:00]} Nc6 {[%emt 0:00:04]} 3. d3 {[%emt 0:00:10]} g6 {[%emt 0:00:39]} 4. g3 {[%emt 0:00:18]} Bg7 {[%emt 0:00:21]} 5. Bg2 {[%emt 0:00:09]} d6 {[%emt 0:00:47]} 6. f4 {[%emt 0:00:42]} Nf6 {[%emt 0:01:12]} 7. Nf3 {[%emt 0:00:24]} O-O {[%emt 0:00:10]} 8. O-O {[%emt 0:00:27]} Rb8 {[%emt 0:00:07]} 9. Ne2 {[%emt 0:01:49]} c4 {[%emt 0:05:33]} 10. h3 {[%emt 0:02:32]} Qb6+ {[%emt 0:08:32]} 11. Kh2 {[%emt 0:00:10]} Be6 {[%emt 0:00:15]} 12. g4 {[%emt 0:06:49]} cxd3 {[%emt 0:05:53]} 13. cxd3 {[%emt 0:00:21]} Rfc8 {[%emt 0:04:47]} 14. f5 {[%emt 0:01:37]} Bd7 {[%emt 0:01:27]} 15. Nf4 {[%emt 0:07:40]} Nb4 {[%emt 0:20:09]} 16. g5 {[%emt 0:07:29]} Ne8 {[%emt 0:01:03]} 17. fxg6 {[%emt 0:01:10]} hxg6 {[%emt 0:00:39]} 18. a3 {[%emt 0:08:47]} Nc2 {[%emt 0:12:42]} 19. Nd5 {[%emt 0:01:15]} Qd8 {[%emt 0:00:09]} 20. Nh4 {[%emt 0:04:18]} Nxa1 {[%emt 0:04:35]} 21. Rxf7 {[%emt 0:17:33]} Kxf7 {[%emt 0:01:30]} 22. Qf3+ {[%emt 0:00:11]} Nf6 {[%emt 0:00:32]} 23. gxf6 {[%emt 0:03:49]} exf6 {[%emt 0:06:26]} 24. Nf4 {[%emt 0:14:41]} Qa5 {[%emt 0:07:40]} 25. Nd5 {[%emt 0:09:37]} Rxc1 {[%emt 0:01:37]} 26. Qg3 {[%emt 0:02:36]} g5 {[%emt 0:02:42]} 27. Qxd6 {[%emt 0:02:31]} Qd8 {[%emt 0:00:12]} 28. Bf3 {[%emt 0:02:41]} Bg4 {[%emt 0:00:17]} 29. Qg3 {[%emt 0:03:09]} gxh4 {[%emt 0:00:37]} 0-1

[Event "WTCC-50 2018"]
[Site "Radebeul"]
[Date "2018.07.07"]
[Round "1"]
[White "Siebenhuener, Michael"]
[Black "Cummings, David H"]
[Result "0-1"]
[ECO "B40"]
[WhiteElo "2038"]
[BlackElo "2336"]
[Annotator "NA"]
[PlyCount "106"]
[EventDate "2018.07.07"]
[EventType "team-tourn"]
[EventCountry "GER"]
[SourceTitle "playchess.com"]
[Source "ChessBase"]
[SourceQuality "1"]
[TimeControl "40/5400+30:1800+30"]

1. e4 {[%emt 0:00:00]} c5 {[%emt 0:00:00]} 2. Nf3 {[%emt 0:00:00]} e6 {[%emt 0:00:00]} 3. c4 {[%emt 0:00:14]} Nc6 {[%emt 0:00:16]} 4. Nc3 {[%emt 0:00:34]} Nd4 {[%emt 0:01:32]} 5. d3 {[%emt 0:00:18]} Ne7 {[%emt 0:02:07]} 6. Be3 {[%emt 0:02:08]} Nec6 {[%emt 0:01:02]} 7. g3 {[%emt 0:01:24]} g6 {[%emt 0:04:58]} 8. Bg2 {[%emt 0:00:16]} Bg7 {[%emt 0:00:12]} 9. O-O {[%emt 0:00:37]} O-O {[%emt 0:00:21]} 10. Ne1 {[%emt 0:03:41]} d6 {[%emt 0:01:53]} 11. f4 {[%emt 0:00:26]} f5 {[%emt 0:03:31]} 12. Nf3 {[%emt 0:04:16]} Rb8 {[%emt 0:03:01]} 13. Qd2 {[%emt 0:01:44]} a6 {[%emt 0:02:02]} 14. Rac1 {[%emt 0:03:24]} b5 {[%emt 0:08:22]} 15. b3 {[%emt 0:00:57]} Bb7 {[%emt 0:15:00]} 16. Ne2 {[%emt 0:01:17]} Qd7 {[%emt 0:08:32]} 17. Nfxd4 {[%emt 0:03:13]} cxd4 {[%emt 0:00:57]} 18. Bf2 {[%emt 0:00:17]} e5 {[%emt 0:02:07]} 19. c5 {[%emt 0:04:31]} Ne7 {[%emt 0:09:37]} 20. cxd6 {[%emt 0:00:16]} Qxd6 {[%emt 0:00:18]} 21. fxe5 {[%emt 0:00:48]} Bxe5 {[%emt 0:00:14]} 22. Rcd1 {[%emt 0:16:32]} Rbc8 {[%emt 0:03:33]} 23. Rfe1 {[%emt 0:01:38]} Rfd8 {[%emt 0:03:04]} 24. Nf4 {[%emt 0:02:42]} Rc3 {[%emt 0:05:05]} 25. Ne2 {[%emt 0:01:08]} Rc7 {[%emt 0:02:54]} 26. Nf4 {[%emt 0:00:43]} Rdc8 {[%emt 0:02:26]} 27. Rc1 {[%emt 0:00:18]} Rc3 {[%emt 0:07:06]} 28. Ne2 {[%emt 0:00:32]} b4 {[%emt 0:00:50]} 29. Red1 {[%emt 0:01:08]} a5 {[%emt 0:01:46]} 30. Nxc3 {[%emt 0:04:53]} bxc3 {[%emt 0:00:26]} 31. Qe2 {[%emt 0:00:18]} Rf8 {[%emt 0:05:06]} 32. Rc2 {[%emt 0:01:43]} Ba6 {[%emt 0:02:48]} 33. Re1 {[%emt 0:01:59]} Nc6 {[%emt 0:03:21]} 34. a3 {[%emt 0:02:20]} f4 {[%emt 0:00:20]} 35. g4 {[%emt 0:13:18]} Qxa3 {[%emt 0:00:29]} 36. Ra2 {[%emt 0:03:06]} Qxb3 {[%emt 0:00:34]} 37. Rea1 {[%emt 0:00:12]} Rc8 {[%emt 0:01:31]} 38. Bf1 {[%emt 0:00:18]} Nb4 {[%emt 0:00:36]} 39. Rxa5 {[%emt 0:00:53]} Bxd3 {[%emt 0:00:21]} 40. Qf3 {[%emt 0:00:39]} Bxf1 {[%emt 0:00:12]} 41. Rxf1 {[%emt 0:30:18]} Qe6 {[%emt 0:03:40]} 42. Rb5 {[%emt 0:00:00]} Na2 {[%emt 0:05:16]} 43. Be1 {[%emt 0:00:00]} c2 {[%emt 0:02:23]} 44. Bd2 {[%emt 0:00:00]} c1=Q {[%emt 0:00:06]} 45. Bxc1 {[%emt 0:00:00]} Nxc1 {[%emt 0:00:12]} 46. Rb1 {[%emt 0:00:00]} Na2 {[%emt 0:00:52]} 47. Qb3 {[%emt 0:00:00]} Qxb3 {[%emt 0:02:53]} 48. Rxb3 {[%emt 0:00:00]} Nc3 {[%emt 0:00:07]} 49. Rb7 {[%emt 0:00:00]} Rd8 {[%emt 0:00:50]} 50. Re7 {[%emt 0:00:00]} Bf6 {[%emt 0:03:13]} 51. Rc7 {[%emt 0:00:00]} d3 {[%emt 0:00:25]} 52. g5 {[%emt 0:00:00]} Bd4+ {[%emt 0:00:39]} 53. Kg2 {[%emt 0:00:00]} d2 {[%emt 0:00:11]} 0-1

[Event "WTCC-50 2018"]
[Site "Radebeul"]
[Date "2018.07.07"]
[Round "1"]
[White "Kierzek, Mira"]
[Black "Polster, Wolfgang"]
[Result "0-1"]
[ECO "A81"]
[WhiteElo "2029"]
[BlackElo "2203"]
[Annotator "NA"]
[PlyCount "84"]
[EventDate "2018.07.07"]
[EventType "team-tourn"]
[EventCountry "GER"]
[SourceTitle "playchess.com"]
[Source "ChessBase"]
[SourceQuality "1"]
[TimeControl "40/5400+30:1800+30"]

1. d4 {[%emt 0:00:00]} f5 {[%emt 0:00:00]} 2. g3 {[%emt 0:00:00]} g6 {[%emt 0:00:02]} 3. Bg2 {[%emt 0:00:16]} Bg7 {[%emt 0:00:27]} 4. Nf3 {[%emt 0:00:59]} Nh6 {[%emt 0:00:51]} 5. Nc3 {[%emt 0:02:34]} O-O {[%emt 0:02:11]} 6. O-O {[%emt 0:03:26]} d6 {[%emt 0:04:40]} 7. e4 {[%emt 0:06:48]} e6 {[%emt 0:04:41]} 8. Be3 {[%emt 0:10:08]} Nf7 {[%emt 0:10:25]} 9. exf5 {[%emt 0:07:32]} gxf5 {[%emt 0:01:12]} 10. Qd2 {[%emt 0:01:39]} h6 {[%emt 0:04:12]} 11. Rad1 {[%emt 0:02:55]} Nd7 {[%emt 0:00:39]} 12. Nh4 {[%emt 0:07:16]} Nf6 {[%emt 0:02:56]} 13. Qe2 {[%emt 0:06:34]} c6 {[%emt 0:05:08]} 14. Bf4 {[%emt 0:08:33]} Re8 {[%emt 0:02:29]} 15. Nf3 {[%emt 0:03:51]} Qa5 {[%emt 0:06:25]} 16. Rfe1 {[%emt 0:06:22]} Bd7 {[%emt 0:01:04]} 17. Qc4 {[%emt 0:04:48]} b5 {[%emt 0:03:57]} 18. Qb3 {[%emt 0:10:38]} b4 {[%emt 0:02:19]} 19. Nb1 {[%emt 0:02:05]} Nd5 {[%emt 0:00:30]} 20. Bd2 {[%emt 0:05:57]} Qc7 {[%emt 0:07:36]} 21. c4 {[%emt 0:01:09]} bxc3 {[%emt 0:00:18]} 22. bxc3 {[%emt 0:00:46]} Rab8 {[%emt 0:01:25]} 23. Qa3 {[%emt 0:01:18]} a5 {[%emt 0:02:54]} 24. c4 {[%emt 0:00:41]} Nb4 {[%emt 0:00:17]} 25. Bc3 {[%emt 0:00:31]} Nc2 {[%emt 0:00:57]} 26. Qc1 {[%emt 0:02:45]} Nxe1 {[%emt 0:00:28]} 27. Nxe1 {[%emt 0:00:41]} c5 {[%emt 0:09:04]} 28. d5 {[%emt 0:01:25]} Rxb1 {[%emt 0:00:22]} 29. Qxb1 {[%emt 0:00:43]} Bxc3 {[%emt 0:00:07]} 30. Nd3 {[%emt 0:00:17]} e5 {[%emt 0:00:30]} 31. Qc2 {[%emt 0:00:15]} Bd4 {[%emt 0:00:13]} 32. Ne1 {[%emt 0:00:16]} Rb8 {[%emt 0:01:09]} 33. Nf3 {[%emt 0:00:37]} Rb2 {[%emt 0:01:00]} 34. Qc1 {[%emt 0:00:08]} Qb6 {[%emt 0:01:40]} 35. Nxd4 {[%emt 0:00:13]} cxd4 {[%emt 0:00:34]} 36. Rf1 {[%emt 0:01:38]} Rxa2 {[%emt 0:00:38]} 37. Qd1 {[%emt 0:00:15]} Qb2 {[%emt 0:01:05]} 38. Qh5 {[%emt 0:00:18]} Ra1 {[%emt 0:00:53]} 39. Qg6+ {[%emt 0:00:37]} Kf8 {[%emt 0:00:07]} 40. Bf3 {[%emt 0:02:08]} Rxf1+ {[%emt 0:00:21]} 41. Kxf1 {[%emt 0:30:14]} Qc1+ {[%emt 0:30:52]} 42. Kg2 {[%emt 0:00:15]} Qg5 {[%emt 0:00:17]} 0-1

[Event "WTCC-50 2018"]
[Site "Radebeul"]
[Date "2018.07.07"]
[Round "1"]
[White "Guller, Andras"]
[Black "Denk, Adolf"]
[Result "0-1"]
[ECO "B53"]
[WhiteElo "2022"]
[BlackElo "2262"]
[Annotator "NA"]
[PlyCount "118"]
[EventDate "2018.07.07"]
[EventType "team-tourn"]
[EventCountry "GER"]
[SourceTitle "playchess.com"]
[Source "ChessBase"]
[SourceQuality "1"]
[TimeControl "40/5400+30:1800+30"]

1. e4 {[%emt 0:00:01]} c5 {[%emt 0:00:00]} 2. Nf3 {[%emt 0:00:16]} d6 {[%emt 0:00:00]} 3. d4 {[%emt 0:01:38]} cxd4 {[%emt 0:00:00]} 4. Qxd4 {[%emt 0:00:08]} a6 {[%emt 0:00:30]} 5. c4 {[%emt 0:01:32]} Nf6 {[%emt 0:00:38]} 6. Nc3 {[%emt 0:00:54]} e6 {[%emt 0:01:42]} 7. b3 {[%emt 0:07:19]} Nbd7 {[%emt 0:04:29]} 8. Bb2 {[%emt 0:01:54]} Qc7 {[%emt 0:00:27]} 9. Be2 {[%emt 0:06:13]} b6 {[%emt 0:03:45]} 10. Nd2 {[%emt 0:08:37]} Bb7 {[%emt 0:03:43]} 11. Qe3 {[%emt 0:02:39]} Be7 {[%emt 0:06:08]} 12. O-O {[%emt 0:01:33]} O-O {[%emt 0:00:33]} 13. Kh1 {[%emt 0:01:57]} Rfe8 {[%emt 0:12:14]} 14. f4 {[%emt 0:03:02]} Bf8 {[%emt 0:02:12]} 15. Bf3 {[%emt 0:01:38]} Rab8 {[%emt 0:12:34]} 16. Rac1 {[%emt 0:01:17]} Rec8 {[%emt 0:04:28]} 17. Rfd1 {[%emt 0:06:04]} e5 {[%emt 0:06:50]} 18. f5 {[%emt 0:05:15]} Qd8 {[%emt 0:01:12]} 19. Nf1 {[%emt 0:03:23]} Bc6 {[%emt 0:04:42]} 20. Nd5 {[%emt 0:08:39]} b5 {[%emt 0:02:31]} 21. Nxf6+ {[%emt 0:03:54]} Qxf6 {[%emt 0:03:12]} 22. cxb5 {[%emt 0:04:24]} axb5 {[%emt 0:00:24]} 23. Qe2 {[%emt 0:06:35]} Nc5 {[%emt 0:05:01]} 24. b4 {[%emt 0:01:00]} Na4 {[%emt 0:00:33]} 25. Ba1 {[%emt 0:01:27]} Nb6 {[%emt 0:02:36]} 26. Ne3 {[%emt 0:04:55]} Qg5 {[%emt 0:02:30]} 27. Rc3 {[%emt 0:07:52]} Bd7 {[%emt 0:05:14]} 28. Rdc1 {[%emt 0:02:07]} Qd8 {[%emt 0:01:00]} 29. Rxc8 {[%emt 0:01:21]} Rxc8 {[%emt 0:00:10]} 30. Rxc8 {[%emt 0:00:24]} Qxc8 {[%emt 0:00:14]} 31. Qd2 {[%emt 0:00:30]} Be7 {[%emt 0:03:14]} 32. Qc3 {[%emt 0:02:07]} Bg5 {[%emt 0:03:16]} 33. Nd1 {[%emt 0:02:04]} Nc4 {[%emt 0:02:02]} 34. g3 {[%emt 0:01:02]} Qa8 {[%emt 0:01:29]} 35. h4 {[%emt 0:00:48]} Bd2 {[%emt 0:00:44]} 36. Qc2 {[%emt 0:01:11]} Bxf5 {[%emt 0:01:59]} 37. a4 {[%emt 0:00:07]} Be6 {[%emt 0:01:10]} 38. Bc3 {[%emt 0:01:51]} Qxa4 {[%emt 0:01:29]} 39. Qd3 {[%emt 0:00:47]} Bxc3 {[%emt 0:02:51]} 40. Qxc3 {[%emt 0:00:32]} Qa2 {[%emt 0:01:27]} 41. Kg1 {[%emt 0:07:51]} Kf8 {[%emt 0:04:00]} 42. Nf2 {[%emt 0:00:49]} Qa3 {[%emt 0:02:26]} 43. Nd1 {[%emt 0:00:57]} Ke7 {[%emt 0:01:48]} 44. Kf2 {[%emt 0:01:13]} Kd7 {[%emt 0:01:19]} 45. Be2 {[%emt 0:03:34]} Qxc3 {[%emt 0:03:54]} 46. Nxc3 {[%emt 0:00:10]} Kc6 {[%emt 0:00:11]} 47. Ke1 {[%emt 0:00:35]} d5 {[%emt 0:02:36]} 48. exd5+ {[%emt 0:01:08]} Bxd5 {[%emt 0:00:10]} 49. Bd3 {[%emt 0:00:13]} h6 {[%emt 0:01:28]} 50. Ke2 {[%emt 0:00:40]} Nd6 {[%emt 0:00:39]} 51. Ke3 {[%emt 0:01:35]} f5 {[%emt 0:01:21]} 52. Bf1 {[%emt 0:02:15]} g5 {[%emt 0:01:28]} 53. hxg5 {[%emt 0:00:45]} hxg5 {[%emt 0:00:01]} 54. Bd3 {[%emt 0:01:14]} Bc4 {[%emt 0:03:01]} 55. Bc2 {[%emt 0:00:41]} Kd7 {[%emt 0:00:26]} 56. Kf3 {[%emt 0:01:11]} Ke6 {[%emt 0:01:05]} 57. Ke3 {[%emt 0:00:35]} Kf6 {[%emt 0:02:10]} 58. Kf3 {[%emt 0:00:27]} e4+ {[%emt 0:00:23]} 59. Ke3 {[%emt 0:00:18]} Ke5 {[%emt 0:00:09] Kd4+} 0-1

[Event "WTCC-50 2018"]
[Site "Radebeul"]
[Date "2018.07.07"]
[Round "1"]
[White "Homer, Stephen J"]
[Black "Ehlvest, Jaan"]
[Result "0-1"]
[ECO "B06"]
[WhiteElo "2020"]
[BlackElo "2536"]
[Annotator "ChessBase"]
[PlyCount "96"]
[EventDate "2018.07.07"]
[EventType "team-tourn"]
[EventCountry "GER"]
[SourceTitle "playchess.com"]
[Source "ChessBase"]
[SourceQuality "1"]
[TimeControl "40/5400+30:1800+30"]

1. e4 {[%emt 0:00:00]} g6 {[%emt 0:00:00]} 2. d4 {[%emt 0:00:00]} Bg7 {[%emt 0:00:00]} 3. Nc3 {[%emt 0:00:00]} c6 {[%emt 0:00:00]} 4. Nf3 {[%emt 0:00:00]} d5 {[%emt 0:00:00]} 5. h3 {[%emt 0:00:00]} Nh6 {[%emt 0:00:46]} 6. Bd3 {[%emt 0:05:04]} O-O {[%emt 0:00:48]} 7. O-O {[%emt 0:06:24]} f6 {[%emt 0:00:26]} 8. Re1 {[%emt 0:09:00]} Nf7 {[%emt 0:02:44]} 9. e5 {[%emt 0:11:26]} fxe5 {[%emt 0:03:13]} 10. dxe5 {[%emt 0:00:55]} e6 {[%emt 0:02:00]} 11. Bf4 {[%emt 0:04:36]} c5 {[%emt 0:05:34]} 12. b3 {[%emt 0:02:35]} Nc6 {[%emt 0:00:55]} 13. Na4 {[%emt 0:02:51]} b6 {[%emt 0:06:25]} 14. c4 {[%emt 0:04:10]} Nb4 {[%emt 0:08:59]} 15. Bf1 {[%emt 0:00:35]} dxc4 {[%emt 0:02:27]} 16. Bxc4 {[%emt 0:00:46]} Nd5 {[%emt 0:08:38]} 17. Bxd5 {[%emt 0:10:28]} Qxd5 {[%emt 0:00:23]} 18. Nc3 {[%emt 0:04:18]} Qxd1 {[%emt 0:03:26]} 19. Raxd1 {[%emt 0:00:09]} Bb7 {[%emt 0:00:30]} 20. Ne4 {[%emt 0:00:23]} Rad8 {[%emt 0:02:40]} 21. Nf6+ {[%emt 0:05:22]} Bxf6 {[%emt 0:04:22]} 22. exf6 {[%emt 0:00:02]} Bxf3 {[%emt 0:00:11]} 23. gxf3 {[%emt 0:09:44]} Rxd1 {[%emt 0:02:12]} 24. Rxd1 {[%emt 0:00:02]} Rd8 {[%emt 0:00:06]} 25. Rxd8+ {[%emt 0:00:17]} Nxd8 {[%emt 0:00:10]} 26. Be5 {[%emt 0:02:44]} Nc6 {[%emt 0:00:53]} 27. f4 {[%emt 0:00:08]} Nb4 {[%emt 0:00:23]} 28. a3 {[%emt 0:01:51]} Nd5 {[%emt 0:00:06]} 29. Kg2 {[%emt 0:02:16]} Kf7 {[%emt 0:00:10]} 30. Kf3 {[%emt 0:00:45]} Nxf6 {[%emt 0:00:17]} 31. b4 {[%emt 0:05:18]} cxb4 {[%emt 0:01:37]} 32. axb4 {[%emt 0:00:02]} a6 {[%emt 0:00:10]} 33. Bd6 {[%emt 0:02:06]} Ke8 {[%emt 0:02:59]} 34. Be5 {[%emt 0:02:40]} Ke7 {[%emt 0:02:06]} 35. Bc3 {[%emt 0:01:53]} Nd5 {[%emt 0:02:22]} 36. Bd4 {[%emt 0:01:26]} Kd6 {[%emt 0:01:23]} 37. Kg4 {[%emt 0:01:25]} Nxb4 {[%emt 0:01:45]} 38. Bxb6 {[%emt 0:01:36]} Nc6 {[%emt 0:00:13]} 39. Kg5 {[%emt 0:00:19]} a5 {[%emt 0:00:39]} 40. Be3 {[%emt 0:01:01]} a4 {[%emt 0:00:32]} 41. Bc1 {[%emt 0:30:02]} Ke7 {[%emt 0:30:46]} 42. Kh6 {[%emt 0:00:58]} Kf6 {[%emt 0:00:21]} 43. Kxh7 {[%emt 0:00:39]} Na5 {[%emt 0:00:13]} 44. h4 {[%emt 0:01:16]} Nc4 {[%emt 0:00:06]} 45. Kh6 {[%emt 0:00:04]} Kf5 {[%emt 0:00:10]} 46. h5 {[%emt 0:01:08]} gxh5 {[%emt 0:00:04]} 47. Kxh5 {[%emt 0:00:02]} a3 {[%emt 0:00:04]} 48. Bxa3 {[%emt 0:00:08]} Nxa3 {[%emt 0:00:04]} 0-1

[Event "WTCC-50 2018"]
[Site "Radebeul"]
[Date "2018.07.07"]
[Round "1"]
[White "Winnig, Bernd"]
[Black "Volke, Karsten"]
[Result "0-1"]
[ECO "A40"]
[WhiteElo "2002"]
[BlackElo "2474"]
[Annotator "ChessBase"]
[PlyCount "68"]
[EventDate "2018.07.07"]
[EventType "team-tourn"]
[EventCountry "GER"]
[SourceTitle "playchess.com"]
[Source "ChessBase"]
[SourceQuality "1"]
[TimeControl "40/5400+30:1800+30"]

1. d4 {[%emt 0:00:00]} Nf6 {[%emt 0:00:00]} 2. c4 {[%emt 0:00:00]} e6 {[%emt 0:00:00]} 3. g3 {[%emt 0:00:00]} c5 {[%emt 0:00:47]} 4. Nf3 {[%emt 0:00:00]} cxd4 {[%emt 0:01:59]} 5. Nxd4 {[%emt 0:00:04]} Qc7 {[%emt 0:04:27]} 6. Qc2 {[%emt 0:12:32]} Bc5 {[%emt 0:07:01]} 7. e3 {[%emt 0:05:01]} Nc6 8. Nb5 {[%emt 0:07:29]} Qb8 {[%emt 0:10:59]} 9. Bg2 {[%emt 0:00:55]} a6 {[%emt 0:01:37]} 10. N5c3 {[%emt 0:01:01]} O-O {[%emt 0:02:28]} 11. O-O {[%emt 0:02:05]} Be7 {[%emt 0:00:50]} 12. Nd2 b5 {[%emt 0:04:07]} 13. Nce4 {[%emt 0:10:25]} Nxe4 {[%emt 0:06:55]} 14. Nxe4 {[%emt 0:01:30]} bxc4 {[%emt 0:04:59]} 15. Qxc4 {[%emt 0:06:05]} a5 {[%emt 0:02:16]} 16. Rd1 {[%emt 0:07:06]} Ba6 {[%emt 0:01:15]} 17. Qa4 {[%emt 0:03:38]} Ra7 {[%emt 0:08:12]} 18. Bf1 {[%emt 0:04:48]} Bxf1 {[%emt 0:01:52]} 19. Kxf1 {[%emt 0:02:54]} Qa8 {[%emt 0:00:38]} 20. f4 {[%emt 0:05:58]} Rb7 {[%emt 0:04:15]} 21. Qc2 {[%emt 0:03:15]} Rc8 {[%emt 0:00:53]} 22. Nc3 {[%emt 0:02:09]} Bf6 {[%emt 0:01:46]} 23. Ne4 {[%emt 0:03:35]} Nb4 {[%emt 0:02:14]} 24. Nxf6+ {[%emt 0:00:26]} gxf6 {[%emt 0:00:06]} 25. Qg2 {[%emt 0:01:02]} Rc2 {[%emt 0:02:29]} 26. Rd2 {[%emt 0:00:21]} Qa6+ {[%emt 0:01:03]} 27. Qe2 {[%emt 0:04:08]} Qc6 {[%emt 0:00:35]} 28. Rxc2 {[%emt 0:07:53]} Nxc2 {[%emt 0:01:25]} 29. Rb1 {[%emt 0:01:01]} Qh1+ {[%emt 0:01:01]} 30. Kf2 {[%emt 0:00:09]} Qxh2+ {[%emt 0:00:39]} 31. Kf3 {[%emt 0:00:24]} Qh1+ {[%emt 0:02:10]} 32. Kf2 {[%emt 0:00:24]} Na3 {[%emt 0:02:57]} 33. Ra1 {[%emt 0:00:35]} Rc7 {[%emt 0:02:14]} 34. bxa3 {[%emt 0:01:46]} Rc2 {[%emt 0:00:43]} 0-1

[Event "WTCC-50 2018"]
[Site "Radebeul"]
[Date "2018.07.07"]
[Round "1"]
[White "Ounas, Abdelhak"]
[Black "Brueggemann, Joachim"]
[Result "0-1"]
[ECO "B33"]
[WhiteElo "1986"]
[BlackElo "2293"]
[Annotator "NA"]
[PlyCount "90"]
[EventDate "2018.07.07"]
[EventType "team-tourn"]
[EventCountry "GER"]
[SourceTitle "playchess.com"]
[Source "ChessBase"]
[SourceQuality "1"]
[TimeControl "40/5400+30:1800+30"]

1. e4 {[%emt 0:00:00]} c5 {[%emt 0:00:00]} 2. Nf3 {[%emt 0:00:00]} Nc6 {[%emt 0:00:00]} 3. d4 {[%emt 0:00:24]} cxd4 {[%emt 0:00:00]} 4. Nxd4 {[%emt 0:00:17]} Nf6 {[%emt 0:00:00]} 5. Nc3 {[%emt 0:00:46]} e5 {[%emt 0:00:00]} 6. Ndb5 {[%emt 0:01:34]} d6 {[%emt 0:00:00]} 7. Bg5 {[%emt 0:01:54]} a6 {[%emt 0:00:07]} 8. Na3 {[%emt 0:01:06]} b5 {[%emt 0:00:10]} 9. Nd5 {[%emt 0:03:58]} Be7 {[%emt 0:00:06]} 10. Bxf6 {[%emt 0:01:45]} Bxf6 {[%emt 0:00:06]} 11. c3 {[%emt 0:00:18]} Bg5 {[%emt 0:00:29]} 12. h4 {[%emt 0:02:59]} Bh6 {[%emt 0:00:27]} 13. g4 {[%emt 0:05:00]} Bf4 {[%emt 0:00:12]} 14. Qf3 {[%emt 0:01:33]} O-O {[%emt 0:17:30]} 15. Nc2 {[%emt 0:03:23]} Be6 {[%emt 0:02:23]} 16. Nxf4 {[%emt 0:04:14]} Qf6 {[%emt 0:01:21]} 17. g5 {[%emt 0:06:19]} Qxf4 {[%emt 0:00:05]} 18. Qxf4 {[%emt 0:00:32]} exf4 {[%emt 0:00:03]} 19. Bh3 {[%emt 0:06:04]} Bc4 {[%emt 0:13:16]} 20. Bf1 {[%emt 0:06:15]} Ne5 {[%emt 0:05:38]} 21. O-O-O {[%emt 0:02:41]} Bxa2 {[%emt 0:01:18]} 22. Rxd6 {[%emt 0:00:56]} Rfd8 {[%emt 0:02:51]} 23. Rxd8+ {[%emt 0:02:28]} Rxd8 {[%emt 0:00:01]} 24. Nd4 {[%emt 0:00:28]} Be6 {[%emt 0:09:59]} 25. Kc2 {[%emt 0:01:28]} Kf8 {[%emt 0:03:31]} 26. Be2 {[%emt 0:01:02]} Ke7 {[%emt 0:01:00]} 27. h5 {[%emt 0:03:46]} Rd6 {[%emt 0:05:44]} 28. Rh4 {[%emt 0:01:36]} f3 {[%emt 0:09:35]} 29. Bf1 {[%emt 0:07:25]} Bd7 {[%emt 0:06:02]} 30. Bh3 {[%emt 0:03:10]} h6 {[%emt 0:04:46]} 31. gxh6 {[%emt 0:00:37]} Rxh6 {[%emt 0:00:07]} 32. Bxd7 {[%emt 0:00:11]} Kxd7 {[%emt 0:00:10]} 33. Nf5 {[%emt 0:00:58]} Rh7 {[%emt 0:00:24]} 34. Rh3 {[%emt 0:02:01]} Ke6 {[%emt 0:03:36]} 35. Rh1 {[%emt 0:00:32]} Kf6 {[%emt 0:00:45]} 36. Ra1 {[%emt 0:00:08]} Rxh5 {[%emt 0:00:49]} 37. Rxa6+ {[%emt 0:04:34]} Kg5 {[%emt 0:00:07]} 38. Ra5 {[%emt 0:01:58]} Rh2 {[%emt 0:01:09]} 39. Rxb5 {[%emt 0:00:49]} Rxf2+ {[%emt 0:00:36]} 40. Kd1 {[%emt 0:00:53]} Kf4 {[%emt 0:01:09]} 41. b4 {[%emt 0:31:46]} Rh2 {[%emt 0:31:52]} 42. Nd4 {[%emt 0:02:19]} Rh1+ {[%emt 0:02:19]} 43. Kd2 {[%emt 0:03:18]} f2 {[%emt 0:00:45]} 44. Ne2+ {[%emt 0:00:46]} Kg4 {[%emt 0:00:32]} 45. Rxe5 {[%emt 0:07:42]} f1=Q {[%emt 0:00:15]} 0-1